[Event "Int SVK-ch Open 2020"]
[Site "Drienica"]
[Date "2020.08.15"]
[Round "9.15"]
[White "Sevcik, Lubomir"]
[Black "Dragula, Miroslav"]
[Result "1/2-1/2"]
[ECO "A84"]
[WhiteElo "1748"]
[BlackElo "1566"]
[Annotator "NA"]
[PlyCount "110"]
[EventDate "2020.08.07"]
[EventType "swiss"]
[EventCountry "SVK"]
[SourceTitle "playchess.com"]
[Source "ChessBase"]
[SourceQuality "1"]
[TimeControl "40/5400+30:1800+30"]

1. d4 {[%emt 0:10:03]} e6 {[%emt 0:00:00]} 2. c4 {[%emt 0:00:08]} f5 {[%emt 0:00:15]} 3. Nc3 {[%emt 0:00:20]} Nf6 {[%emt 0:00:15]} 4. Bg5 {[%emt 0:00:48]} Be7 {[%emt 0:00:12]} 5. Nf3 {[%emt 0:00:37]} c6 {[%emt 0:01:48]} 6. e3 {[%emt 0:01:55]} d5 {[%emt 0:00:17]} 7. Ne5 {[%emt 0:01:46]} Nbd7 {[%emt 0:00:58]} 8. Nxd7 {[%emt 0:01:59]} Bxd7 {[%emt 0:00:16]} 9. Bxf6 {[%emt 0:06:22]} Bxf6 {[%emt 0:00:16]} 10. c5 {[%emt 0:00:54]} O-O {[%emt 0:01:15]} 11. Bd3 {[%emt 0:03:43]} Qe8 {[%emt 0:01:12]} 12. f4 {[%emt 0:02:10]} Bh4+ {[%emt 0:01:44]} 13. Kd2 {[%emt 0:00:39]} Be7 {[%emt 0:00:55]} 14. Qf3 {[%emt 0:01:58]} b6 {[%emt 0:01:11]} 15. b4 {[%emt 0:02:27]} a5 {[%emt 0:00:33]} 16. a3 {[%emt 0:04:56]} Qb8 {[%emt 0:02:57]} 17. Na4 {[%emt 0:05:12]} Bd8 {[%emt 0:03:01]} 18. Rhb1 {[%emt 0:06:19]} b5 {[%emt 0:03:07]} 19. Nc3 {[%emt 0:02:46]} Qa7 {[%emt 0:00:22]} 20. Qd1 {[%emt 0:04:37]} axb4 {[%emt 0:05:13]} 21. axb4 {[%emt 0:00:24]} Qb7 {[%emt 0:00:08]} 22. Rxa8 {[%emt 0:00:37]} Qxa8 {[%emt 0:00:08]} 23. Ra1 {[%emt 0:00:07]} Qb7 {[%emt 0:00:03]} 24. Ra2 {[%emt 0:00:25]} Be7 {[%emt 0:00:24]} 25. Qa1 {[%emt 0:00:39]} Rb8 {[%emt 0:00:29]} 26. Ne2 {[%emt 0:01:48]} Qc7 {[%emt 0:00:44]} 27. Ng1 {[%emt 0:04:38]} Bc8 {[%emt 0:01:16]} 28. Nf3 {[%emt 0:01:33]} Bf6 {[%emt 0:00:19]} 29. Kc3 {[%emt 0:01:59]} Bb7 {[%emt 0:00:09]} 30. Ra7 {[%emt 0:00:53]} Qc8 {[%emt 0:00:12]} 31. h3 {[%emt 0:02:11]} Ra8 {[%emt 0:00:11]} 32. g4 {[%emt 0:02:17]} g6 {[%emt 0:00:46]} 33. g5 {[%emt 0:00:46]} Bg7 {[%emt 0:00:11]} 34. Nd2 {[%emt 0:01:51]} Qb8 {[%emt 0:00:21]} 35. Rxa8 {[%emt 0:03:18]} Qxa8 {[%emt 0:01:49]} 36. Qxa8+ {[%emt 0:00:11]} Bxa8 {[%emt 0:00:06]} 37. Nb3 {[%emt 0:00:03]} Bf8 {[%emt 0:00:39]} 38. Na5 {[%emt 0:00:35]} Kg7 {[%emt 0:00:26]} 39. Be2 {[%emt 0:03:34]} Be7 {[%emt 0:00:13]} 40. Nb3 {[%emt 0:02:00]} Bd8 {[%emt 0:00:25]} 41. Nd2 {[%emt 0:30:20]} Bc7 {[%emt 0:30:39]} 42. Nb1 {[%emt 0:00:22]} Bb7 {[%emt 0:00:36]} 43. Na3 {[%emt 0:00:24]} Ba6 {[%emt 0:04:46]} 44. Nb1 {[%emt 0:05:08]} Bc8 {[%emt 0:00:29]} 45. Nd2 {[%emt 0:00:13]} Bd7 {[%emt 0:00:12]} 46. Nb3 {[%emt 0:00:11]} Kf7 {[%emt 0:03:03]} 47. h4 {[%emt 0:00:18]} Bd8 {[%emt 0:00:17]} 48. Na5 {[%emt 0:01:30]} Ke8 {[%emt 0:01:53]} 49. Nb7 {[%emt 0:00:53]} Be7 {[%emt 0:00:18]} 50. h5 {[%emt 0:03:12]} Bc8 {[%emt 0:00:18]} 51. Na5 {[%emt 0:00:14]} Kd7 {[%emt 0:00:45]} 52. Nb3 {[%emt 0:00:14]} Ke8 {[%emt 0:00:58]} 53. Nd2 {[%emt 0:00:20]} Bd8 {[%emt 0:00:39]} 54. Nf3 {[%emt 0:02:32]} Bc7 {[%emt 0:00:16]} 55. Nh4 {[%emt 0:01:12]} Kf7 {[%emt 0:00:10]} 1/2-1/2

[Event "Int SVK-ch Open 2020"]
[Site "Drienica"]
[Date "2020.08.15"]
[Round "9.16"]
[White "Brnusak, Tomas"]
[Black "Antal, Jakub"]
[Result "1-0"]
[ECO "A38"]
[WhiteElo "2044"]
[BlackElo "1939"]
[Annotator "ChessBase"]
[PlyCount "62"]
[EventDate "2020.08.07"]
[EventType "swiss"]
[EventCountry "SVK"]
[SourceTitle "playchess.com"]
[Source "ChessBase"]
[SourceQuality "1"]
[TimeControl "40/5400+30:1800+30"]

1. c4 {[%emt 0:00:00]} c5 {[%emt 0:00:00]} 2. Nc3 {[%emt 0:00:41]} Nf6 {[%emt 0:01:28]} 3. g3 {[%emt 0:00:46]} g6 {[%emt 0:01:55]} 4. Bg2 {[%emt 0:00:34]} Bg7 {[%emt 0:01:12]} 5. Nf3 {[%emt 0:02:46]} O-O {[%emt 0:00:38]} 6. O-O {[%emt 0:00:11]} Nc6 {[%emt 0:02:33]} 7. d3 {[%emt 0:01:31]} d6 {[%emt 0:04:32]} 8. e4 {[%emt 0:01:47]} Ne8 {[%emt 0:16:29]} 9. Ne1 {[%emt 0:03:25]} Nc7 {[%emt 0:04:03]} 10. f4 {[%emt 0:03:23]} Ne6 {[%emt 0:04:35]} 11. Nc2 {[%emt 0:07:05]} Ned4 {[%emt 0:05:56]} 12. Ne3 {[%emt 0:03:16]} f5 {[%emt 0:06:18]} 13. exf5 {[%emt 0:03:04]} gxf5 {[%emt 0:03:39]} 14. Rb1 {[%emt 0:05:33]} Bd7 {[%emt 0:10:09]} 15. h3 {[%emt 0:11:49]} e6 {[%emt 0:07:36]} 16. a3 {[%emt 0:09:37]} a5 {[%emt 0:02:36]} 17. Qe1 {[%emt 0:02:07]} Rf7 {[%emt 0:03:00]} 18. g4 {[%emt 0:01:40]} fxg4 {[%emt 0:00:09]} 19. hxg4 {[%emt 0:00:08]} Qe7 {[%emt 0:02:57]} 20. Qg3 {[%emt 0:04:24]} Raf8 {[%emt 0:04:52]} 21. Bd2 {[%emt 0:09:32]} Nb3 {[%emt 0:00:48]} 22. Ne4 {[%emt 0:00:20]} Nxd2 {[%emt 0:06:37]} 23. Nxd2 {[%emt 0:02:18]} Nd4 {[%emt 0:00:18]} 24. Rbe1 {[%emt 0:00:08]} Bc6 {[%emt 0:00:35]} 25. Ne4 {[%emt 0:02:54]} Qd7 {[%emt 0:04:23]} 26. Qh2 {[%emt 0:02:52]} Bf6 {[%emt 0:01:36]} 27. g5 {[%emt 0:00:15]} Bd8 {[%emt 0:01:27]} 28. Ng4 {[%emt 0:01:16]} Bxe4 {[%emt 0:00:57]} 29. Bxe4 {[%emt 0:00:47]} Rg7 {[%emt 0:00:30]} 30. Kh1 {[%emt 0:02:23]} Nf5 {[%emt 0:00:24]} 31. Rf3 {[%emt 0:01:46]} Qf7 {[%emt 0:02:01]} 1-0

[Event "Int SVK-ch Open 2020"]
[Site "Drienica"]
[Date "2020.08.15"]
[Round "9.16"]
[White "Socko, Weronika"]
[Black "Kucik, Patrik"]
[Result "1-0"]
[ECO "D40"]
[WhiteElo "1741"]
[BlackElo "1572"]
[Annotator "NA"]
[PlyCount "41"]
[EventDate "2020.08.07"]
[EventType "swiss"]
[EventCountry "SVK"]
[SourceTitle "playchess.com"]
[Source "ChessBase"]
[SourceQuality "1"]
[TimeControl "40/5400+30:1800+30"]

1. d4 {[%emt 0:00:18]} Nf6 {[%emt 0:00:11]} 2. c4 {[%emt 0:00:24]} e6 {[%emt 0:00:20]} 3. Nc3 {[%emt 0:00:11]} d5 {[%emt 0:00:28]} 4. Nf3 {[%emt 0:00:33]} c5 {[%emt 0:06:09]} 5. e3 {[%emt 0:01:01]} Nc6 {[%emt 0:00:50]} 6. Be2 {[%emt 0:03:44]} Be7 {[%emt 0:02:32]} 7. O-O {[%emt 0:00:55]} O-O {[%emt 0:01:10]} 8. a3 {[%emt 0:03:03]} cxd4 {[%emt 0:02:23]} 9. Nxd4 {[%emt 0:02:18]} Nxd4 {[%emt 0:01:08]} 10. Qxd4 {[%emt 0:00:42]} b6 {[%emt 0:01:10]} 11. Bf3 {[%emt 0:03:01]} Bb7 {[%emt 0:05:38]} 12. Rd1 {[%emt 0:02:21]} Bc5 {[%emt 0:03:47]} 13. Qd2 {[%emt 0:06:02]} Qc7 {[%emt 0:06:59]} 14. Nb5 {[%emt 0:08:38]} Qe7 {[%emt 0:03:30]} 15. b4 {[%emt 0:02:22]} Bd6 {[%emt 0:02:43]} 16. Nxd6 {[%emt 0:00:52]} Qxd6 {[%emt 0:00:36]} 17. Bb2 {[%emt 0:00:13]} Qd8 {[%emt 0:04:00]} 18. Rac1 {[%emt 0:01:51]} Rb8 {[%emt 0:04:40]} 19. cxd5 {[%emt 0:02:35]} Nxd5 {[%emt 0:02:10]} 20. e4 {[%emt 0:02:37]} Ne7 {[%emt 0:02:54]} 21. Qc3 {[%emt 0:00:52]} 1-0

[Event "Int SVK-ch Open 2020"]
[Site "Drienica"]
[Date "2020.08.15"]
[Round "9.17"]
[White "Djubek, Boris"]
[Black "Dujava, Daniel"]
[Result "1-0"]
[ECO "D37"]
[WhiteElo "2019"]
[BlackElo "2111"]
[Annotator "ChessBase"]
[PlyCount "83"]
[EventDate "2020.08.07"]
[EventType "swiss"]
[EventCountry "SVK"]
[SourceTitle "playchess.com"]
[Source "ChessBase"]
[SourceQuality "1"]
[TimeControl "40/5400+30:1800+30"]

1. d4 {[%emt 0:00:00]} Nf6 {[%emt 0:00:00]} 2. Nf3 {[%emt 0:00:00]} e6 {[%emt 0:00:38]} 3. c4 {[%emt 0:00:26]} d5 {[%emt 0:00:42]} 4. Nc3 {[%emt 0:00:52]} c6 {[%emt 0:00:15]} 5. Bf4 {[%emt 0:03:37]} Nbd7 {[%emt 0:02:14]} 6. e3 {[%emt 0:01:00]} Be7 {[%emt 0:02:02]} 7. Rc1 {[%emt 0:01:06]} dxc4 {[%emt 0:02:52]} 8. Bxc4 {[%emt 0:01:05]} Nb6 {[%emt 0:04:32]} 9. Bd3 {[%emt 0:04:58]} Nfd5 {[%emt 0:10:09]} 10. Bg3 {[%emt 0:03:49]} Nxc3 {[%emt 0:01:59]} 11. bxc3 {[%emt 0:06:54]} c5 {[%emt 0:03:11]} 12. Ne5 {[%emt 0:03:21]} Nd7 {[%emt 0:22:51]} 13. O-O {[%emt 0:06:06]} O-O {[%emt 0:03:35]} 14. Rb1 {[%emt 0:14:16]} Nxe5 {[%emt 0:02:48]} 15. Bxe5 {[%emt 0:00:40]} cxd4 {[%emt 0:04:41]} 16. cxd4 {[%emt 0:02:11]} Bd6 {[%emt 0:00:50]} 17. Bxd6 {[%emt 0:03:44]} Qxd6 {[%emt 0:00:06]} 18. Qc2 {[%emt 0:01:39]} g6 {[%emt 0:02:01]} 19. Rfc1 {[%emt 0:03:02]} Rd8 {[%emt 0:17:03]} 20. Be4 {[%emt 0:03:28]} Rd7 {[%emt 0:02:43]} 21. Qc5 {[%emt 0:05:58]} Qxc5 {[%emt 0:01:37]} 22. Rxc5 {[%emt 0:00:46]} Rb8 {[%emt 0:01:17]} 23. Rbc1 {[%emt 0:02:09]} Rd8 {[%emt 0:00:18]} 24. Rc7 {[%emt 0:00:58]} a6 {[%emt 0:00:48]} 25. Re7 {[%emt 0:08:02]} b5 {[%emt 0:00:16]} 26. Rcc7 {[%emt 0:01:23]} Rf8 {[%emt 0:00:27]} 27. Ra7 {[%emt 0:04:19]} Rb6 {[%emt 0:03:11]} 28. h4 {[%emt 0:04:18]} Kg7 {[%emt 0:02:25]} 29. f4 {[%emt 0:03:49]} h5 {[%emt 0:01:20]} 30. Rec7 {[%emt 0:02:23]} Rd6 {[%emt 0:00:40]} 31. a3 {[%emt 0:02:44]} Kf6 {[%emt 0:01:11]} 32. Bc6 {[%emt 0:01:09]} Rdd8 {[%emt 0:00:42]} 33. Kf2 {[%emt 0:01:31]} g5 {[%emt 0:05:18]} 34. hxg5+ {[%emt 0:00:41]} Kg6 {[%emt 0:00:16]} 35. Be4+ {[%emt 0:00:52]} Kg7 {[%emt 0:00:19]} 36. g6 {[%emt 0:00:31]} Kh6 {[%emt 0:01:12]} 37. Rxf7 {[%emt 0:01:53]} Rxf7 {[%emt 0:00:07]} 38. Rxf7 {[%emt 0:00:17]} Rh8 {[%emt 0:00:08]} 39. Ke1 {[%emt 0:01:15]} a5 {[%emt 0:01:27]} 40. Kd2 {[%emt 0:00:41]} b4 {[%emt 0:00:17]} 41. axb4 {[%emt 0:30:34]} axb4 {[%emt 0:30:04]} 42. Ra7 {[%emt 0:00:41]} 1-0

[Event "Int SVK-ch Open 2020"]
[Site "Drienica"]
[Date "2020.08.15"]
[Round "9.17"]
[White "Kulich, Daniel"]
[Black "Malinovsky, Jozef"]
[Result "1/2-1/2"]
[ECO "A45"]
[WhiteElo "1492"]
[BlackElo "1698"]
[Annotator "NA"]
[PlyCount "53"]
[EventDate "2020.08.07"]
[EventType "swiss"]
[EventCountry "SVK"]
[SourceTitle "playchess.com"]
[Source "ChessBase"]
[SourceQuality "1"]
[TimeControl "40/5400+30:1800+30"]

1. d4 {[%emt 0:00:00]} Nf6 {[%emt 0:00:00]} 2. Bf4 {[%emt 0:00:00]} e6 {[%emt 0:00:47]} 3. e3 {[%emt 0:00:00]} Bd6 {[%emt 0:00:45]} 4. Bd3 {[%emt 0:00:12]} Bxf4 {[%emt 0:00:38]} 5. exf4 {[%emt 0:00:46]} c6 {[%emt 0:01:23]} 6. c3 {[%emt 0:00:26]} Qc7 {[%emt 0:00:37]} 7. g3 {[%emt 0:01:14]} c5 {[%emt 0:01:20]} 8. Nf3 {[%emt 0:00:20]} b6 {[%emt 0:00:21]} 9. O-O {[%emt 0:00:26]} h6 {[%emt 0:00:49]} 10. Nbd2 {[%emt 0:00:21]} Bb7 {[%emt 0:00:18]} 11. Re1 {[%emt 0:00:22]} O-O {[%emt 0:01:18]} 12. dxc5 {[%emt 0:17:33]} Qxc5 {[%emt 0:01:06]} 13. Ne4 {[%emt 0:00:41]} Nxe4 {[%emt 0:00:20]} 14. Bxe4 {[%emt 0:00:06]} Bxe4 {[%emt 0:01:04]} 15. Rxe4 {[%emt 0:07:58]} Nc6 {[%emt 0:00:16]} 16. Ne5 {[%emt 0:00:56]} Nxe5 {[%emt 0:00:31]} 17. Rxe5 {[%emt 0:01:43]} Qc7 {[%emt 0:01:46]} 18. Qg4 {[%emt 0:03:39]} f5 {[%emt 0:00:16]} 19. Qe2 {[%emt 0:01:38]} Rac8 {[%emt 0:01:07]} 20. Rd1 {[%emt 0:01:33]} Rf7 {[%emt 0:00:05]} 21. Re3 {[%emt 0:00:59]} Qb7 {[%emt 0:01:24]} 22. Qf3 {[%emt 0:01:16]} Qxf3 {[%emt 0:00:14]} 23. Rxf3 {[%emt 0:00:06]} Kf8 {[%emt 0:00:04]} 24. Rfd3 {[%emt 0:00:48]} Ke8 {[%emt 0:00:19]} 25. h4 {[%emt 0:00:48]} Rc7 {[%emt 0:00:15]} 26. Kf1 {[%emt 0:00:20]} Ke7 {[%emt 0:00:02]} 27. Ke2 1/2-1/2

[Event "Int SVK-ch Open 2020"]
[Site "Drienica"]
[Date "2020.08.15"]
[Round "9.18"]
[White "Sevcikova, Lucia"]
[Black "Mandak, Miroslav"]
[Result "1/2-1/2"]
[ECO "C41"]
[WhiteElo "2017"]
[BlackElo "1927"]
[Annotator "ChessBase"]
[PlyCount "75"]
[EventDate "2020.08.07"]
[EventType "swiss"]
[EventCountry "SVK"]
[SourceTitle "playchess.com"]
[Source "ChessBase"]
[SourceQuality "1"]
[TimeControl "40/5400+30:1800+30"]

1. d4 {[%emt 0:00:00]} d6 {[%emt 0:00:22]} 2. e4 {[%emt 0:00:19]} e5 {[%emt 0:01:16]} 3. Nf3 {[%emt 0:02:35]} Nd7 {[%emt 0:01:07]} 4. Bc4 {[%emt 0:01:08]} Be7 {[%emt 0:00:52]} 5. Nc3 {[%emt 0:00:52]} c6 {[%emt 0:00:53]} 6. a4 {[%emt 0:01:23]} Ngf6 {[%emt 0:02:19]} 7. O-O {[%emt 0:01:27]} O-O {[%emt 0:00:47]} 8. h3 {[%emt 0:01:45]} Qc7 {[%emt 0:10:46]} 9. Ba2 {[%emt 0:05:16]} h6 {[%emt 0:01:04]} 10. Be3 {[%emt 0:00:39]} b6 {[%emt 0:01:41]} 11. Qe2 {[%emt 0:03:22]} Nh7 {[%emt 0:07:34]} 12. Rad1 {[%emt 0:02:44]} Bb7 {[%emt 0:02:45]} 13. Rfe1 {[%emt 0:03:40]} a5 {[%emt 0:03:52]} 14. Qd2 {[%emt 0:03:10]} Rad8 {[%emt 0:05:03]} 15. Ne2 {[%emt 0:03:57]} exd4 {[%emt 0:06:07]} 16. Nexd4 {[%emt 0:01:22]} Ne5 {[%emt 0:02:07]} 17. Qe2 {[%emt 0:04:53]} Bc8 {[%emt 0:02:55]} 18. Nh2 {[%emt 0:04:25]} c5 {[%emt 0:03:07]} 19. Nb5 {[%emt 0:01:43]} Qb8 {[%emt 0:01:15]} 20. f4 {[%emt 0:02:06]} Nc6 {[%emt 0:05:21]} 21. c3 {[%emt 0:01:55]} Nf6 {[%emt 0:06:35]} 22. Bf2 {[%emt 0:02:52]} Rfe8 {[%emt 0:04:20]} 23. Bd5 {[%emt 0:02:21]} Nxd5 {[%emt 0:01:34]} 24. exd5 {[%emt 0:00:10]} Na7 {[%emt 0:01:36]} 25. Ng4 {[%emt 0:02:33]} Nxb5 {[%emt 0:00:29]} 26. axb5 {[%emt 0:00:13]} Bd7 {[%emt 0:01:30]} 27. c4 {[%emt 0:02:21]} Bh4 {[%emt 0:02:45]} 28. Qf3 {[%emt 0:01:32]} Bxg4 {[%emt 0:01:10]} 29. Qxg4 {[%emt 0:00:45]} Bxf2+ {[%emt 0:00:41]} 30. Kxf2 {[%emt 0:00:12]} Qc8 {[%emt 0:00:43]} 31. Rxe8+ {[%emt 0:00:54]} Rxe8 {[%emt 0:00:29]} 32. Qxc8 {[%emt 0:00:04]} Rxc8 {[%emt 0:00:14]} 33. Re1 {[%emt 0:00:13]} Kf8 {[%emt 0:00:04]} 34. Kf3 {[%emt 0:00:48]} Re8 {[%emt 0:00:49]} 35. Rxe8+ {[%emt 0:00:08]} Kxe8 {[%emt 0:00:01]} 36. Ke4 {[%emt 0:00:07]} Ke7 {[%emt 0:00:52]} 37. g4 {[%emt 0:00:37]} g6 {[%emt 0:02:49]} 38. b3 {[%emt 0:02:10]} 1/2-1/2

[Event "Int SVK-ch Open 2020"]
[Site "Drienica"]
[Date "2020.08.15"]
[Round "9.18"]
[White "Kapolkova, Greta"]
[Black "Gulas, Gabriel"]
[Result "1-0"]
[ECO "C10"]
[WhiteElo "1510"]
[BlackElo "1472"]
[Annotator "NA"]
[PlyCount "66"]
[EventDate "2020.08.07"]
[EventType "swiss"]
[EventCountry "SVK"]
[SourceTitle "playchess.com"]
[Source "ChessBase"]
[SourceQuality "1"]
[TimeControl "40/5400+30:1800+30"]

1. e4 {[%emt 0:00:00]} e6 {[%emt 0:00:00]} 2. d4 {[%emt 0:00:00]} d5 {[%emt 0:00:00]} 3. Nc3 {[%emt 0:01:15]} dxe4 {[%emt 0:00:00]} 4. Nxe4 {[%emt 0:00:18]} Bd7 {[%emt 0:00:14]} 5. Nf3 {[%emt 0:00:28]} Bc6 {[%emt 0:00:09]} 6. Bd3 {[%emt 0:01:39]} Bxe4 {[%emt 0:00:11]} 7. Bxe4 {[%emt 0:00:09]} c6 {[%emt 0:00:06]} 8. c3 {[%emt 0:00:56]} Nf6 {[%emt 0:00:35]} 9. Bg5 {[%emt 0:01:18]} Be7 {[%emt 0:00:23]} 10. Bxf6 {[%emt 0:00:43]} Bxf6 {[%emt 0:00:19]} 11. Qb3 {[%emt 0:00:27]} Qc7 {[%emt 0:01:16]} 12. O-O {[%emt 0:00:28]} Nd7 {[%emt 0:01:11]} 13. Rfe1 {[%emt 0:01:13]} O-O-O {[%emt 0:09:04]} 14. a4 {[%emt 0:01:18]} g5 {[%emt 0:01:06]} 15. a5 {[%emt 0:02:55]} g4 {[%emt 0:03:00]} 16. Nd2 {[%emt 0:00:26]} Bg5 {[%emt 0:04:33]} 17. Nf1 {[%emt 0:01:00]} h5 {[%emt 0:01:20]} 18. Qc4 {[%emt 0:00:25]} f5 {[%emt 0:03:40]} 19. Bc2 {[%emt 0:00:43]} f4 {[%emt 0:00:32]} 20. Rxe6 {[%emt 0:01:08]} a6 {[%emt 0:12:37]} 21. b4 {[%emt 0:02:23]} Rhf8 {[%emt 0:06:18]} 22. Ba4 {[%emt 0:06:20]} Nb8 {[%emt 0:02:49]} 23. Qc5 {[%emt 0:03:33]} Rg8 {[%emt 0:03:50]} 24. Rae1 {[%emt 0:09:29]} f3 {[%emt 0:03:36]} 25. g3 {[%emt 0:00:50]} h4 {[%emt 0:00:48]} 26. Qf5 {[%emt 0:19:07]} Qd7 {[%emt 0:11:11]} 27. Qxg4 {[%emt 0:03:00]} hxg3 {[%emt 0:02:22]} 28. hxg3 {[%emt 0:04:45]} Bd2 {[%emt 0:02:35]} 29. Rxc6+ {[%emt 0:10:57]} Nxc6 {[%emt 0:04:16]} 30. Qxd7+ {[%emt 0:00:31]} Rxd7 {[%emt 0:00:21]} 31. Nxd2 {[%emt 0:00:14]} Rf7 {[%emt 0:00:32]} 32. Bb3 {[%emt 0:00:53]} Rxg3+ 33. fxg3 f2+ 1-0

[Event "Int SVK-ch Open 2020"]
[Site "Drienica"]
[Date "2020.08.15"]
[Round "9.19"]
[White "Ihnat, Marek"]
[Black "Zahradnik, Vladimir"]
[Result "0-1"]
[ECO "B40"]
[WhiteElo "2065"]
[BlackElo "1874"]
[Annotator "ChessBase"]
[PlyCount "64"]
[EventDate "2020.08.07"]
[EventType "swiss"]
[EventCountry "SVK"]
[SourceTitle "playchess.com"]
[Source "ChessBase"]
[SourceQuality "1"]
[TimeControl "40/5400+30:1800+30"]

1. e4 {[%emt 0:00:00]} c5 {[%emt 0:00:00]} 2. Nf3 {[%emt 0:00:00]} e6 {[%emt 0:00:09]} 3. d4 {[%emt 0:00:18]} cxd4 {[%emt 0:00:06]} 4. Nxd4 {[%emt 0:00:10]} Nf6 {[%emt 0:00:09]} 5. Nc3 {[%emt 0:00:15]} Bb4 {[%emt 0:01:30]} 6. Qf3 {[%emt 0:06:10]} Nc6 {[%emt 0:04:26]} 7. Nxc6 {[%emt 0:03:19]} bxc6 {[%emt 0:00:08]} 8. Bd2 {[%emt 0:01:57]} d5 {[%emt 0:02:23]} 9. exd5 {[%emt 0:02:54]} exd5 {[%emt 0:00:16]} 10. a3 {[%emt 0:04:47]} Be7 {[%emt 0:00:17]} 11. h3 {[%emt 0:04:47]} O-O {[%emt 0:00:22]} 12. Bd3 {[%emt 0:00:22]} Be6 {[%emt 0:04:10]} 13. O-O {[%emt 0:02:21]} Qd7 {[%emt 0:05:08]} 14. Rfe1 {[%emt 0:03:22]} Rfb8 {[%emt 0:01:09]} 15. b3 {[%emt 0:03:26]} a5 {[%emt 0:04:01]} 16. a4 {[%emt 0:00:26]} h6 {[%emt 0:01:12]} 17. Rad1 {[%emt 0:02:52]} g5 {[%emt 0:14:32]} 18. g4 {[%emt 0:08:41]} Nxg4 {[%emt 0:07:16]} 19. Rxe6 {[%emt 0:00:55]} fxe6 {[%emt 0:00:33]} 20. Qxg4 {[%emt 0:02:11]} Rb4 {[%emt 0:04:28]} 21. Qg2 {[%emt 0:02:16]} Rh4 {[%emt 0:00:26]} 22. f4 {[%emt 0:06:13]} Kh8 {[%emt 0:01:23]} 23. fxg5 {[%emt 0:04:35]} hxg5 {[%emt 0:00:13]} 24. Be1 {[%emt 0:03:10]} Rh6 {[%emt 0:01:32]} 25. Be2 {[%emt 0:02:42]} Bc5+ {[%emt 0:04:11]} 26. Kh1 {[%emt 0:01:55]} e5 {[%emt 0:01:58]} 27. Bg4 {[%emt 0:03:35]} Qe7 {[%emt 0:00:47]} 28. Nxd5 {[%emt 0:05:34]} cxd5 {[%emt 0:00:32]} 29. Rxd5 {[%emt 0:00:16]} Rf8 {[%emt 0:17:31]} 30. Bc3 {[%emt 0:06:46]} Bd4 {[%emt 0:02:52]} 31. Bxa5 {[%emt 0:01:23]} Rhf6 {[%emt 0:07:08]} 32. Qe4 {[%emt 0:11:46]} Rf1+ 0-1

[Event "Int SVK-ch Open 2020"]
[Site "Drienica"]
[Date "2020.08.15"]
[Round "9.19"]
[White "Lehocz, Jozsef"]
[Black "Belis, Rudolf"]
[Result "1/2-1/2"]
[ECO "B28"]
[WhiteElo "1959"]
[BlackElo "1924"]
[Annotator "ChessBase"]
[PlyCount "63"]
[EventDate "2020.08.07"]
[EventType "swiss"]
[EventCountry "SVK"]
[SourceTitle "playchess.com"]
[Source "ChessBase"]
[SourceQuality "1"]
[TimeControl "40/5400+30:1800+30"]

1. e4 {[%emt 0:00:00]} c5 {[%emt 0:00:00]} 2. Nf3 {[%emt 0:00:00]} a6 {[%emt 0:00:02]} 3. d4 {[%emt 0:00:00]} cxd4 {[%emt 0:00:07]} 4. c3 {[%emt 0:00:00]} d3 {[%emt 0:00:21]} 5. Bxd3 {[%emt 0:00:00]} d6 {[%emt 0:00:19]} 6. c4 {[%emt 0:00:15]} e6 {[%emt 0:01:08]} 7. Nc3 {[%emt 0:00:13]} Nf6 {[%emt 0:00:07]} 8. h3 {[%emt 0:00:33]} Be7 {[%emt 0:00:11]} 9. Be3 {[%emt 0:00:40]} O-O {[%emt 0:00:39]} 10. O-O {[%emt 0:02:32]} Nc6 {[%emt 0:03:57]} 11. a3 {[%emt 0:00:26]} Bd7 {[%emt 0:02:36]} 12. b4 {[%emt 0:03:02]} Qc7 {[%emt 0:01:00]} 13. Rc1 {[%emt 0:01:08]} Ne5 {[%emt 0:01:39]} 14. Nxe5 {[%emt 0:02:51]} dxe5 {[%emt 0:00:04]} 15. Be2 {[%emt 0:20:56]} Rfd8 {[%emt 0:01:21]} 16. Qc2 {[%emt 0:01:30]} Be8 {[%emt 0:02:21]} 17. c5 {[%emt 0:04:38]} Bc6 {[%emt 0:01:53]} 18. a4 {[%emt 0:01:00]} Be8 {[%emt 0:00:56]} 19. Rb1 {[%emt 0:03:20]} h6 {[%emt 0:00:56]} 20. Rfc1 {[%emt 0:00:27]} Bf8 {[%emt 0:02:01]} 21. Nd1 {[%emt 0:02:50]} Qc6 {[%emt 0:01:19]} 22. Nc3 {[%emt 0:00:25]} Qc7 {[%emt 0:00:07]} 23. Qb3 {[%emt 0:00:56]} Be7 {[%emt 0:02:59]} 24. Qc4 {[%emt 0:01:30]} Rdc8 {[%emt 0:01:19]} 25. Qb3 {[%emt 0:08:43]} Bf8 {[%emt 0:04:44]} 26. g3 {[%emt 0:02:09]} Be7 {[%emt 0:02:05]} 27. f3 {[%emt 0:00:18]} Bf8 {[%emt 0:00:07]} 28. Nd1 {[%emt 0:00:24]} Nd7 {[%emt 0:07:32]} 29. Kg2 {[%emt 0:01:33]} a5 {[%emt 0:03:35]} 30. b5 {[%emt 0:08:06]} Nxc5 {[%emt 0:02:59]} 31. Qa2 {[%emt 0:03:05]} b6 {[%emt 0:01:21]} 32. Nb2 {[%emt 0:00:19]} 1/2-1/2